Cogmind - Beta 10.2 @@@ ROGUE MODE // 2022.01.30 @ 12:00:19 Player: GreatJustice Result: Destroyed by G-47 Trooper with Particle Gun Performance ------------- Evolutions (2) 1000 Regions Visited (3) 600 Robots Destroyed (37) 185 Value Destroyed (1050) 1050 Prototype IDs (1) 20 Alien Tech Used (0) 0 Bonus (0) 0 TOTAL SCORE: 2855 Bonus ------- None Cogmind --------- Core Integrity 0/550 Matter 200/300 Energy 100/100 System Corruption 0% Temperature Cool (18) Movement Flying (175) Ox2 Location -8/Materials Parts ------- > --- POWER (3) -------- (None) > --- PROPULSION (2) --- Improved Flight Unit > --- UTILITY (2) ------ Large Storage Unit Seismic Analyzer > --- WEAPON (4) ------- (None) > --- INVENTORY (10) --- Large Storage Unit Compact Matter Pod (0) Improved Terrain Scanner Weapon Shielding Light Armor Plating Improved Datajack Peak State ------------ > --- POWER ------------ Improved Ion Engine Improved Ion Engine Nuclear Core > --- PROPULSION ------- Aluminum Leg Improved Aluminum Leg > --- UTILITY ---------- Large Storage Unit Seismic Analyzer > --- WEAPON ----------- Heavy Assault Rifle Heavy Assault Rifle Heavy Assault Rifle EMP Blaster > --- INVENTORY -------- Flight Unit Improved Flight Unit Large Storage Unit Compact Matter Pod Improved Terrain Scanner Weapon Shielding Light Armor Plating Shotgun Improved Datajack Katana [Rating: 22] Favorites ----------- Power Improved Ion Engine Engine Improved Ion Engine Power Core Nuclear Core Propulsion Aluminum Leg Leg Aluminum Leg Flight Unit Improved Flight Unit Utility Seismic Analyzer Device Terrain Scanner Storage Large Storage Unit Processor Seismic Analyzer Weapon Heavy Assault Rifle Energy Gun EM Pulse Gun Ballistic Gun Heavy Assault Rifle Launcher EMP Blaster Slashing Weapon Katana Build | -11 -10 -9 -8 ------- Run | Scr Mat Mat Mat Slots Evolved 4 | . . 2 2 Power 2 | . . 1 1 Propulsion . | . . . . Utility . | . . . . Weapon 2 | . . 1 1 Parts Attached 40 | 5 8 21 6 Power 7 | 1 2 3 1 Engine 6 | 1 2 3 . Core 1 | . . . 1 Reactor . | . . . . Propulsion 11 | 2 1 6 2 Treads . | . . . . Leg 7 | 2 1 4 . Wheel . | . . . . Hover . | . . . . Flight 4 | . . 2 2 Utility 5 | . 3 2 . Device 1 | . 1 . . Storage 2 | . . 2 . Processor 2 | . 2 . . Hackware . | . . . . Protection . | . . . . Artifact . | . . . . Weapon 17 | 2 2 10 3 Energy Gun 5 | 1 2 2 . Energy Cannon . | . . . . Ballistic Gun 8 | 1 . 5 2 Ballistic Cannon . | . . . . Launcher 2 | . . 2 . Special Weapon . | . . . . Impact Weapon . | . . . . Slashing Weapon 2 | . . 1 1 Piercing Weapon . | . . . . Special Melee Weapon . | . . . . Unidentified Prototypes 1 | . . 1 . Parts Lost 26 | . 5 9 12 Power 6 | . 1 2 3 Propulsion 6 | . 1 2 3 Utility 1 | . 1 . . Weapon 13 | . 2 5 6 Highest Loss Streak 12 | . 3 8 12 Average Slot Usage (%) 87 | . 84 89 84 Engine 14 | . 12 14 15 Leg 21 | . 27 20 14 Storage 7 | . . 10 9 Processor 11 | . 12 11 9 Energy Gun 11 | . 20 9 . Ballistic Gun 15 | . 7 17 21 Launcher 3 | . . 3 6 Naked Turns . | . . . . Heaviest Build 50 | 6 9 40 50 Greatest Support 23 | 20 20 23 23 Greatest Overweight (x) 6 | . . 6 4 Average Overweight (x) . | . . . 1 Largest Inventory Capacity 10 | 4 4 10 10 Average Capacity 8 | 4 4 9 10 Most Carried 10 | 4 4 10 10 Average Carried 6 | . 2 7 9 Final Capacity 10 | 4 4 10 10 Final Carried 9 | 1 4 9 6 Class Distribution -------------------- 40% | Mutant 27% | Scavenger-Gunner 20% | Gunner 10% | Scavenger-Mutant Dominant Class ---------------- Mutant | -10/Materials Gunner | -9/Materials Scavenger-Gunner | -8/Materials Resources | -11 -10 -9 -8 ----------- Run | Scr Mat Mat Mat Matter Collected 698 | 254 102 342 . Remotely . | . . . . Salvage Created 1391 | 48 414 837 92 Parts 86 | 1 21 61 3 Haulers Intercepted . | . . . . Recyclers Shooed 1 | . 1 . . Parts Field Recycled . | . . . . Retrieved Matter . | . . . . Parts Self-Destructed . | . . . . Prevented . | . . . . Kills | -11 -10 -9 -8 ------- Run | Scr Mat Mat Mat Combat Hostiles Destroyed 30 | 1 9 18 2 Guns 23 | 1 8 12 2 AOE 6 | . . 6 . Classes Destroyed 9 | 1 . 8 . Worker 1 | . . 1 . Builder 1 | . . 1 . Tunneler 2 | . . 2 . Recycler 1 | . . 1 . Watcher 2 | . . 2 . Swarmer 6 | . . 6 . Grunt 19 | 1 9 7 2 Duelist 1 | . . 1 . Sentry 4 | . . 4 . Best Kill Streak 6 | 1 6 5 2 Combat Bots Only 6 | 1 6 5 2 Max Kills in Single Turn 3 | 1 1 3 1 Gunslinging 1 | . . 1 . Exploded 2 | . . 2 . Melee . | . . . . Uniques/NPCs Destroyed . | . . . . Combat | -11 -10 -9 -8 -------- Run | Scr Mat Mat Mat Damage Taken 2928 | 12 554 989 1373 Core 876 | . 162 150 564 Absorbed by Shields . | . . . . Core Remaining (%) 65 | 100 35 62 . Volleys Fired 93 | 4 40 39 10 Largest 3 | 2 2 3 3 Hottest 130 | 60 60 130 69 Shots Fired 204 | 8 66 110 20 Gun 195 | 8 66 101 20 Cannon . | . . . . Launcher 9 | . . 9 . Special . | . . . . Kinetic 129 | 4 34 71 20 Thermal 28 | . . 28 . Explosive . | . . . . Electromagnetic 47 | 4 32 11 . Robot Hit Streak 10 | 4 6 10 3 Robot Miss Streak 4 | 1 2 4 2 Penetration Max . | . . . . Secondary Targets 9 | . 2 6 1 Max Gunslinging Chain 2 | . 1 2 1 Shots Hit Robots 130 | 5 45 65 15 Core Hits 64 | 2 19 36 7 Critical Hits 1 | . 1 . . Critical Kills 1 | . 1 . . Critical Parts Destroyed . | . . . . Melee Attacks . | . . . . Impact . | . . . . Slashing . | . . . . Piercing . | . . . . Sneak Attacks . | . . . . Combat Hostiles . | . . . . Follow-up Attacks . | . . . . Damage Inflicted 1741 | 65 466 980 230 Guns 1473 | 65 464 714 230 Cannons . | . . . . Explosions 266 | . . 266 . Melee . | . . . . Ramming 2 | . 2 . . Kinetic 865 | 25 153 457 230 Thermal 300 | . . 300 . Explosive . | . . . . Electromagnetic 574 | 40 311 223 . Impact . | . . . . Slashing . | . . . . Piercing . | . . . . Highest Corruption . | . . . . Average Corruption . | . . . . Corruption Purged . | . . . . Overload Shots . | . . . . Overflow Damage . | . . . . Projectiles . | . . . . Explosions . | . . . . Melee . | . . . . Knockbacks . | . . . . Impact . | . . . . Kinetic . | . . . . Secondary . | . . . . Self-Inflicted Damage 62 | . 1 61 . Shots 4 | . . 4 . Rammed 1 | . 1 . . Targets Rammed 1 | . 1 . . Kicked . | . . . . Crushed . | . . . . Highest Temperature 251 | 46 112 221 251 Average Temperature 77 | 20 39 85 159 Received Heat Transfer 1437 | 6 306 342 783 Siege Activations . | . . . . Robots Corrupted 1 | . 1 . . Combat Hostiles 1 | . 1 . . Parts Fried 2 | . 2 . . Impact Corruptions . | . . . . Robots Melted . | . . . . Combat Hostiles . | . . . . Parts Melted 2 | . . 2 . Heat Transferred 746 | . . 746 . Parts Sabotaged . | . . . . Parts Stolen . | . . . . Parts Stripped . | . . . . Power Chain Reactions 3 | . . 3 . Missiles Intercepted . | . . . . Alert | -11 -10 -9 -8 ------- Run | Scr Mat Mat Mat Peak Influence 282 | 20 282 217 90 Initial 56 | . 13 34 56 Average 103 | 10 151 108 71 Maximum Alert Level 1 | . 1 1 . Low Security (%) 84 | 100 60 88 100 Level 1 15 | . 39 11 . Level 2 . | . . . . Level 3 . | . . . . Level 4 . | . . . . Level 5 . | . . . . High Security . | . . . . Max Security . | . . . . Squads Dispatched 8 | . 4 2 2 Investigation 4 | . 2 2 . Extermination . | . . . . Reinforcement 4 | . 2 . 2 Assault . | . . . . Garrison . | . . . . Intercept . | . . . . Construction Impeded . | . . . . Haulers Reinforced . | . . . . Stealth | -11 -10 -9 -8 --------- Run | Scr Mat Mat Mat Distress Signals . | . . . . Communications Jammed . | . . . . Distress Signals . | . . . . Times Spotted 45 | 1 15 23 6 Peak Tracking Total 7 | 1 5 7 5 Tactical Retreats 4 | . 2 2 . Traps | -11 -10 -9 -8 ------- Run | Scr Mat Mat Mat Traps Triggered 2 | . . 2 . Indirectly . | . . . . Trap Hack Attempts . | . . . . Triggered . | . . . . Disarmed . | . . . . Reprogrammed . | . . . . Reused . | . . . . Traps Extracted . | . . . . Installed . | . . . . Triggered . | . . . . Machines | -11 -10 -9 -8 ---------- Run | Scr Mat Mat Mat Machines Disabled 2 | . . 2 . Max in Single Turn 1 | . . 1 . Machines Sabotaged . | . . . . Garrisons Compromised . | . . . . Overloaded Fab Kills . | . . . . Fab Network Shutdowns . | . . . . Hacking | -11 -10 -9 -8 --------- Run | Scr Mat Mat Mat Machines Accessed 7 | . 3 2 2 Terminals 5 | . 2 2 1 Fabricators . | . . . . Repair Stations . | . . . . Recycling Units 1 | . 1 . . Scanalyzers 1 | . . . 1 Garrison Access . | . . . . Total Hacks 23 | . 14 4 5 Successful 16 | . 10 2 4 Failed 7 | . 4 2 1 Catastrophic . | . . . . Database Lockouts . | . . . . Manual . | . . . . Terminals 17 | . 10 4 3 Fabricators . | . . . . Repair Stations . | . . . . Recycling Units 4 | . 4 . . Scanalyzers 2 | . . . 2 Garrison Access . | . . . . Terminal Hacks 11 | . 7 2 2 Record 3 | . 2 1 . Emergency Access Points 1 | . . . 1 Alert Level 2 | . 2 . . Hauler Manifests 3 | . 1 1 1 Registered Components 1 | . 1 . . Zone Layout 1 | . 1 . . Fabricator Hacks . | . . . . Repair Station Hacks . | . . . . Recycling Unit Hacks 3 | . 3 . . Recycle Component 2 | . 2 . . Report Inventory 1 | . 1 . . Scanalyzer 2 | . . . 2 Insert Component 1 | . . . 1 Analyze 1 | . . . 1 Garrison Access Hacks . | . . . . Unauthorized Hacks . | . . . . Terminals . | . . . . Fabricators . | . . . . Repair Stations . | . . . . Recycling Units . | . . . . Scanalyzers . | . . . . Garrison Access . | . . . . Data Cores Recovered . | . . . . Used . | . . . . Hacking Detections 7 | . 3 2 2 Full Trace Events 2 | . 2 . . Feedback Events . | . . . . Feedback Blocked . | . . . . Robot Schematics Acquired . | . . . . Robots Built . | . . . . Matter . | . . . . Time . | . . . . Total Robot Build Rating . | . . . . Part Schematics Acquired 1 | . . . 1 Parts Built . | . . . . Matter . | . . . . Time . | . . . . Total Part Build Rating . | . . . . Parts Repaired . | . . . . Time . | . . . . Parts Recycled 2 | . 2 . . Recycled Matter . | . . . . Retrieved Matter . | . . . . Retrieved Components . | . . . . Parts Scanalyzed 1 | . . . 1 Part Schematics Acquired 1 | . . . 1 Parts Damaged . | . . . . Bothacking | -11 -10 -9 -8 ------------ Run | Scr Mat Mat Mat Used RIF Installer . | . . . . Robots Hacked . | . . . . Non-combat . | . . . . Combat . | . . . . Robot Hacks Applied . | . . . . Relay Couplers Released . | . . . . Robots Rewired . | . . . . Allies Hacked . | . . . . Hacks Repelled . | . . . . Allies | -11 -10 -9 -8 -------- Run | Scr Mat Mat Mat Total Allies . | . . . . Largest Group . | . . . . Highest-Rated Group . | . . . . Highest-Rated Ally . | . . . . Total Orders . | . . . . Ally Attacks . | . . . . Total Damage . | . . . . Kills . | . . . . Allies Corrupted . | . . . . Allies Melted . | . . . . Intel | -11 -10 -9 -8 ------- Run | Scr Mat Mat Mat Robot Analysis Total . | . . . . Derelict Logs Recovered . | . . . . Drone Launches . | . . . . Drone Recoveries . | . . . . Exploration | -11 -10 -9 -8 ------------- Run | Scr Mat Mat Mat Turns Passed 2272 | 235 487 1305 245 Spaces Moved 1199 | 198 302 583 116 Core 44 | 39 . 5 . Treads . | . . . . Legs 1144 | 159 302 578 105 Wheels . | . . . . Hover . | . . . . Flight 11 | . . . 11 Fastest Speed 50 | 50 120 120 150 Average Speed 138 | 106 120 150 179 Slowest Speed 360 | 120 120 350 360 Overloaded Moves . | . . . . Propulsion Burnouts . | . . . . Robots Hopped . | . . . . Cave-ins Triggered . | . . . . Exploration Rate (%) 21 | 12 33 32 10 Regions Visited 3 Branch Regions . Pre-discovered Areas . | . . . . Known Exits Taken . | . . . . Unknown Exits Taken 3 | 1 1 1 . Scrap Searched . | . . . . Spaces Dug . | . . . . Terrain Destroyed 10 | . . 10 . Melee . | . . . . Projectile . | . . . . AOE 10 | . . 10 . Terrain Rammed . | . . . . Walls Destroyed . | . . . . Machines Disabled . | . . . . Actions | -11 -10 -9 -8 --------- Run | Scr Mat Mat Mat Total 1664 | 216 370 942 136 Wait 244 | . 1 242 1 Move 1196 | 197 301 582 116 Hop . | . . . . Pick Up 63 | 8 15 37 3 Fast Attach . | . . . . Attach 30 | 5 6 13 6 Detach 1 | . . 1 . Swap 10 | . 2 8 . Drop 26 | 2 4 20 . Fire 93 | 4 40 39 10 Melee . | . . . . Ram . | . . . . Kick 1 | . 1 . . Crush . | . . . . Escape Stasis . | . . . . Rewire . | . . . . Trap . | . . . . Miscellaneous . | . . . . Route ------- -11/Scrapyard -10/Materials (discovered 2 exits: *Mat / [*Min]) -9/Materials -8/Materials History --------- Turn | Location | Event 2 | -11/Scrapyard | Met Revision 17 94 | -11/Scrapyard | Discovered new exit (range 8) 236 | -11/Scrapyard | Entered Materials 314 | -10/Materials | Build established: Mutant 321 | -10/Materials | Discovered new exit (range 13) 385 | -10/Materials | Discovered new exit (range 12) 445 | -10/Materials | Core integrity fell below 50% 525 | -10/Materials | Lost 3 parts (1p1n1w) 723 | -10/Materials | Entered another Materials area 723 | -9/Materials | Evolved 2 slots: Power x1, Weapon x1 1039 | -9/Materials | Build established: Gunner 1290 | -9/Materials | Lost 8 parts (2p2n4w) 1819 | -9/Materials | Build established: Scavenger-Gunner 1992 | -9/Materials | Discovered new exit (range 16) 2028 | -9/Materials | Entered another Materials area 2028 | -8/Materials | Evolved 2 slots: Power x1, Weapon x1 2254 | -8/Materials | Core integrity fell below 50% 2268 | -8/Materials | Core integrity fell below 20% 2273 | -8/Materials | Destroyed by G-47 Trooper with Particle Gun Last Messages --------------- 02196_ Hvy. Assault Rifle destroyed. 02217_ EMP Blaster destroyed. 02223_ Material Processor disabled. 02224_ Aluminum Leg destroyed. 02227_ Imp. Ion Engine destroyed. 02228_ U-05 Engineer lays Concrete. 02230_ G-47 Trooper destroyed. 02230_ Switching to secondary target: G-47 Trooper. 02232_ Shotgun destroyed. 02233_ Imp. Aluminum Leg destroyed. 02233_ Nuclear Core destroyed. 02234_ G-47 Trooper destroyed. 02238_ Hvy. Assault Rifle destroyed. 02240_ Imp. Ion Engine destroyed. 02241_ U-05 Engineer lays Concrete. 02248_ Hvy. Assault Rifle destroyed. 02249_ U-05 Engineer lays Concrete. 02253_ Katana destroyed. 02255_ Flight Unit destroyed. 02262_ U-05 Engineer lays Concrete. Map ----- +----------------------------------------------------+ | ?????????????????????????????????????????????????? | | ?????????????????????????????????????????????????? | | ?????????????????????????????????????????????????? | | ????########?????????????????????????????????????? | | ????# #????????? ?????????????????????????? | | ????# ########## ????????????????????????? | | ????# # # "??? ???????????????????? | | ????# # """" # """ #??????????????????? | | ????# # """" # """ #??????????????????? | | ????# # """" # #??????????????????? | | ????# # # #??????????????????? | | ????# + "S =! # #??????????????????? | | ????# # """ !! #]!! #??????????????????? | | ????# # "" #]!! #??????????????????? | | ????# # #!!! u !#??????????????????? | | ????####/######+##### a #??????????????????? | | ??????# "T" #??????????????????? | | ??????# #??????????????????? | | ??????# u #??????????????????? | | ????### """ #??????????????????? | | ????#"" """"" #??????????????????? | | ????#"T """"" #####??????????????????? | | ????#"" """""g #??????????????????????? | | ????### "" #??????????????????????? | | ??????# g #########??????????????? | | ??????# %=% g @ ????????? | | ??????# ! * #####+###??????????????? | | ??????################ #??????????????????????? | | ??????????????# # #??????????????????????? | | ??????????????# # #??????????????????????? | | ??????????????# + #??????????????????????? | | ??????????????# # #??????????????????????? | | ??????????????# # #??????????????????????? | | ??????????????# # #??????????????????????? | | ??????????????#############??????????????????????? | | ?????????????????????????????????????????????????? | | ?????????????????????????????????????????????????? | | ?????????????????????????????????????????????????? | | ?????????????????????????????????????????????????? | | ?????????????????????????????????????????????????? | | ?????????????????????????????????????????????????? | | ?????????????????????????????????????????????????? | | ?????????????????????????????????????????????????? | | ?????????????????????????????????????????????????? | | ?????????????????????????????????????????????????? | | ?????????????????????????????????????????????????? | | | | | | | | | +----------------------------------------------------+ Best States ------------- Heat Dissipation 31 Energy Generation 28 Energy Capacity 570 Matter Stores 300 Matter Capacity 300 Sight Range 16 Terrain Scan Range 14 Terrain Scan Density 60 Evasion (%) 50 Item Schematics ----------------- Lgt. Armor Plating | -8/Materials | Scanalyzed Robot Schematics ------------------ None Fabricated ------------ Nothing Alien Tech Used ----------------- None Achievements -------------- Crack Shot Let's See Who's Tougher Risk Taker Shopping List Challenges ------------ None Game ------ Seed TrackerSwordBay Manual? 0 Play Time 00:42:50 Cumulative 1.8 hours Start 2022.01.30 @ 11:12:48 End 2022.01.30 @ 12:00:19 Sessions 3 Manual Loads 0 Difficulty Rogue Special Mode None Game No. 2 Rogue 2 Adventurer 0 Explorer 0 Win Type - Total 0 Types 0/0/0/0/0/0/0/0/0 Lore% 0 Gallery% 3 Achievement% 3 Wizard Run 0 Options --------- ASCII 0 Keyboard 0 Movement Numpad Keybinds 0 Fullscreen 1 Font 24/Terminus Map View 183x50 Tactical HUD 1 Map Filters NONE Filters NONE Steam 1 RUN: 829e0414-5b18-45da-8521-3ef1ce404bb4